fUST/lending_fUST_20250819
["ID","MTS","AMOUNT","RATE_DAILY","PERIOD"]
[380178680,1755594646932,-480.0,0.00019726,2]
[380178681,1755594646941,-214.046057,0.00019726,2]
[380178682,1755594646950,-480.0,0.00019726,2]
[380178683,1755594646959,-529.97,0.00019726,2]
[380178684,1755594646967,-480.0,0.00019726,2]
[380178685,1755594646976,-480.0,0.00019726,2]
[380178686,1755594646986,-480.0,0.00019726,2]
[380178687,1755594646995,-480.0,0.00019726,2]
[380178688,1755594647006,-480.0,0.00019726,2]
[380178689,1755594647088,-480.0,0.00019726,2]
[380178690,1755594647098,-480.0,0.00019726,2]
[380178691,1755594647107,-480.0,0.00019726,2]
[380178692,1755594647117,-235.1457587,0.00019726,2]
[380178693,1755594647126,-656.89,0.00019726,2]
[380178694,1755594647135,-480.0,0.00019726,2]
[380178695,1755594647144,-480.0,0.00019726,2]
[380178696,1755594647153,-480.0,0.00019726,2]
[380178697,1755594647162,-1162.25,0.00019726,2]
[380178698,1755594647171,-480.0,0.00019726,2]
[380178699,1755594647180,-480.0,0.00019726,2]
[380178700,1755594647189,-666.47,0.00019726,2]
[380178701,1755594647198,-480.0,0.00019726,2]
[380178702,1755594647207,-480.0,0.00019726,2]
[380178703,1755594647216,-480.0,0.00019726,2]
[380178704,1755594647226,-480.0,0.00019726,2]
[380178705,1755594647235,-480.0,0.00019726,2]
[380178706,1755594647245,-480.0,0.00019726,2]
[380178707,1755594647254,-480.0,0.00019726,2]
[380178708,1755594647263,-480.0,0.00019726,2]
[380178709,1755594647273,-202.47504064,0.00019726,2]
[380178710,1755594647282,-1466.75,0.00019726,2]
[380178711,1755594647291,-2257.44,0.00019726,2]
[380178712,1755594647300,-480.0,0.00019726,2]
[380178713,1755594647310,-480.0,0.00019726,2]
[380178714,1755594647319,-480.0,0.00019726,2]
[380178715,1755594647329,-480.0,0.00019726,2]
[380178716,1755594647338,-480.0,0.00019726,2]
[380178717,1755594647348,-480.0,0.00019726,2]
[380178718,1755594647357,-480.0,0.00019726,2]
[380178719,1755594647367,-827.65,0.00019726,2]
[380178720,1755594647376,-760.7,0.00019726,2]
[380178721,1755594647387,-480.0,0.00019726,2]
[380178722,1755594647397,-480.0,0.00019726,2]
[380178723,1755594647407,-480.0,0.00019726,2]
[380178724,1755594647416,-616.58,0.00019726,2]
[380178725,1755594647426,-480.0,0.00019726,2]
[380178726,1755594647435,-480.0,0.00019726,2]
[380178727,1755594647444,-480.0,0.00019726,2]
[380178728,1755594647453,-480.0,0.00019726,2]
[380178729,1755594647462,-480.0,0.00019726,2]
[380178730,1755594647472,-480.0,0.00019726,2]
[380178731,1755594647481,-1433.47,0.00019726,2]
[380178732,1755594647491,-779.58,0.00019726,2]
[380178733,1755594647501,-6706.66,0.00019726,2]
[380178734,1755594647510,-480.0,0.00019726,2]
[380178735,1755594647519,-480.0,0.00019726,2]
[380178736,1755594647528,-480.0,0.00019726,2]
[380178737,1755594647537,-670.05,0.00019726,2]
[380178738,1755594647546,-1141.66,0.00019726,2]
[380178739,1755594647555,-1096.61,0.00019726,2]
[380178740,1755594647564,-549.83,0.00019726,2]
[380178741,1755594647574,-1040.36,0.00019726,2]
[380178742,1755594647583,-480.0,0.00019726,2]
[380178743,1755594647592,-480.0,0.00019726,2]
[380178744,1755594647602,-480.0,0.00019726,2]
[380178745,1755594647611,-480.0,0.00019726,2]
[380178746,1755594647620,-480.0,0.00019726,2]
[380178747,1755594647630,-663.94,0.00019726,2]
[380178748,1755594647640,-480.0,0.00019726,2]
[380178749,1755594647649,-584.12,0.00019726,2]
[380178750,1755594647659,-708.45,0.00019726,2]
[380178751,1755594647668,-480.0,0.00019726,2]
[380178752,1755594647678,-1243.2,0.00019726,2]
[380178753,1755594647688,-480.0,0.00019726,2]
[380178754,1755594647698,-480.0,0.00019726,2]
[380178755,1755594647707,-2041.53,0.00019726,2]
[380178756,1755594647716,-480.0,0.00019726,2]
[380178757,1755594647725,-731.69,0.00019726,2]
[380178758,1755594647735,-480.0,0.00019726,2]
[380178759,1755594647745,-480.0,0.00019726,2]
[380178760,1755594647755,-480.0,0.00019726,2]
[380178761,1755594647764,-6741.79,0.00019726,2]
[380178762,1755594647773,-480.0,0.00019726,2]
[380178763,1755594647782,-482.49,0.00019726,2]
[380178764,1755594647791,-2143.73,0.00019726,2]
[380178765,1755594647801,-480.0,0.00019726,2]
[380178766,1755594647810,-480.0,0.00019726,2]
[380178767,1755594647819,-1416.0,0.00019726,2]
[380178768,1755594647828,-577.13441198,0.00019726,2]
[380178769,1755594647837,-3337.57,0.00019726,2]
[380178770,1755594647846,-1968.48,0.00019726,2]
[380178771,1755594647855,-480.0,0.00019726,2]
[380178772,1755594647865,-480.0,0.00019726,2]
[380178773,1755594647874,-480.0,0.00019726,2]
[380178774,1755594647884,-480.0,0.00019726,2]
[380178775,1755594647893,-920.72,0.00019726,2]
[380178776,1755594647902,-480.0,0.00019726,2]
[380178777,1755594647911,-480.0,0.00019726,2]
[380178778,1755594647921,-480.0,0.00019726,2]
[380178779,1755594647930,-480.0,0.00019726,2]
[380178780,1755594647939,-498.43607098,0.00019726,2]
[380178781,1755594647948,-1594.19,0.00019726,2]
[380178782,1755594647957,-480.0,0.00019726,2]
[380178783,1755594647967,-480.0,0.00019726,2]
[380178784,1755594647977,-811.17,0.00019726,2]
[380178785,1755594647986,-480.0,0.00019726,2]
[380178786,1755594647995,-480.0,0.00019726,2]
[380178787,1755594648008,-494.80484904,0.00019726,2]
[380178788,1755594648018,-850.65,0.00019726,2]
[380178789,1755594648028,-480.0,0.00019726,2]
[380178790,1755594648039,-740.39,0.00019726,2]
[380178791,1755594648048,-480.0,0.00019726,2]
[380178792,1755594648058,-480.0,0.00019726,2]
[380178793,1755594648067,-531.76,0.00019726,2]
[380178794,1755594648077,-480.0,0.00019726,2]
[380178795,1755594648087,-480.0,0.00019726,2]
[380178796,1755594648096,-694.13,0.00019726,2]
[380178797,1755594648105,-480.0,0.00019726,2]
[380178798,1755594648116,-736.57,0.00019726,2]
[380178799,1755594648126,-509.2,0.00019726,2]
[380178800,1755594648140,-480.0,0.00019726,2]
[380178801,1755594648152,-480.0,0.00019726,2]
[380178802,1755594648162,-837.87,0.00019726,2]
[380178803,1755594648173,-480.0,0.00019726,2]
[380178804,1755594648183,-3597.33,0.00019726,2]
[380178805,1755594648193,-480.0,0.00019726,2]
[380178806,1755594648204,-480.0,0.00019726,2]
[380178807,1755594648215,-2299.42,0.00019726,2]
[380178808,1755594648226,-1595.14,0.00019726,2]
[380178809,1755594648240,-480.0,0.00019726,2]
[380178810,1755594648249,-480.0,0.00019726,2]
[380178811,1755594648259,-480.0,0.00019726,2]
[380178812,1755594648268,-489.16884038,0.00019726,2]
[380178813,1755594648278,-480.0,0.00019726,2]
[380178814,1755594648287,-480.0,0.00019726,2]
[380178815,1755594648297,-480.0,0.00019726,2]
[380178816,1755594648307,-644.65,0.00019726,2]
[380178817,1755594648318,-480.0,0.00019726,2]
[380178818,1755594648328,-412.2096394,0.00019726,2]
[380178819,1755594648338,-875.34,0.00019726,2]
[380178820,1755594648348,-2799.63,0.00019726,2]
[380178821,1755594648357,-384.06795447,0.00019726,2]
[380178822,1755594648367,-1306.54,0.00019726,2]
[380178823,1755594648377,-168.0,0.00019732,2]
[380178824,1755594648388,-302.51602579,0.00019833,2]
[380178825,1755594648398,-490.935053,0.00019863,2]
[380178826,1755594648408,-168.0,0.00019889,2]
[380178827,1755594648418,-221.27896971,0.0001989,2]
[380178828,1755594648427,-168.0,0.00019892,2]
[380178829,1755594648437,-4556.895666,0.000199,2]
[380178830,1755594648447,-151.0,0.000199,2]
[380178831,1755594648456,-190.993123,0.000199,2]
[380178832,1755594648539,-151.0,0.000199,2]
[380178833,1755594648548,-190.993123,0.000199,2]
[380178834,1755594648560,-223.65181965,0.00019973,2]
[380178835,1755594648569,-167.73886474,0.00019973,2]
[380178836,1755594648579,-500.0,0.00019973,2]
[380178837,1755594648589,-501.6669573,0.00019973,2]
[380178838,1755594648599,-158.68137963,0.00019973,2]
[380178839,1755594648609,-500.0,0.00019973,2]
[380178840,1755594648619,-500.0,0.00019973,2]
[380178841,1755594648629,-248.80528292,0.00019973,2]
[380178842,1755594648639,-158.6785085,0.00019973,2]
[380178843,1755594648649,-500.0,0.00019973,2]
[380178844,1755594648658,-500.0,0.00019973,2]
[380178845,1755594648668,-168.0,0.00019979,2]
[380178846,1755594648677,-86924.95256937,0.0001999,2]
[380178847,1755594648687,-151.0,0.0001999,2]
[380178848,1755594648696,-154.030151,0.0001999,2]
[380178849,1755594648706,-151.0,0.0001999,2]
[380178850,1755594648715,-151.0,0.0001999,2]
[380178851,1755594648725,-151.0,0.0001999,2]
[380178852,1755594648734,-151.44009,0.0001999,2]
[380178853,1755594648744,-151.0,0.0001999,2]
[380178854,1755594648754,-151.0,0.0001999,2]
[380178855,1755594648764,-265.456392,0.0001999,2]
[380178856,1755594648774,-265.456392,0.0001999,2]
[380178857,1755594648783,-151.0,0.0001999,2]
[380178858,1755594648794,-183.362902,0.0001999,2]
[380178859,1755594648804,-258.391223,0.0001999,2]
[380178860,1755594648826,-151.0,0.0001999,2]
[380178861,1755594648835,-151.0,0.0001999,2]
[380178862,1755594648845,-151.0,0.0001999,2]
[380178863,1755594648854,-258.391223,0.0001999,2]
[380178864,1755594648863,-151.0,0.0001999,2]
[380178865,1755594648872,-151.0,0.0001999,2]
[380178866,1755594648882,-163.212059,0.0001999,2]
[380178867,1755594648893,-163.212059,0.0001999,2]
[380178868,1755594648902,-151.0,0.0001999,2]
[380178869,1755594648912,-151.0,0.0001999,2]
[380178870,1755594648922,-152.364018,0.0001999,2]
[380178871,1755594648932,-151.538521,0.0001999,2]
[380178872,1755594648942,-428.517852,0.0001999,2]
[380178873,1755594648951,-428.517852,0.0001999,2]
[380178874,1755594648961,-151.0,0.0001999,2]
[380178875,1755594648971,-151.0,0.0001999,2]
[380178876,1755594648980,-151.0,0.0001999,2]
[380178877,1755594648989,-151.0,0.0001999,2]
[380178878,1755594649000,-151.0,0.0001999,2]
[380178879,1755594649013,-151.0,0.0001999,2]
[380178880,1755594649023,-242.755203,0.0001999,2]
[380178881,1755594649032,-151.0,0.0001999,2]
[380178882,1755594649043,-151.0,0.0001999,2]
[380178883,1755594649053,-151.0,0.0001999,2]
[380178884,1755594649062,-189.707204,0.0001999,2]
[380178885,1755594649072,-151.0,0.0001999,2]
[380178886,1755594649082,-189.707204,0.0001999,2]
[380178887,1755594649091,-151.0,0.0001999,2]
[380178888,1755594649099,-151.0,0.0001999,2]
[380178889,1755594649107,-151.0,0.0001999,2]
[380178890,1755594649116,-151.0,0.0001999,2]
[380178891,1755594649126,-151.0,0.0001999,2]
[380178892,1755594649136,-151.0,0.0001999,2]
[380178893,1755594649146,-151.0,0.0001999,2]
[380178894,1755594649155,-151.0,0.0001999,2]
[380178895,1755594649165,-211.484218,0.0001999,2]
[380178896,1755594649174,-151.0,0.0001999,2]
[380178897,1755594649183,-211.484218,0.0001999,2]
[380178898,1755594649192,-151.0,0.0001999,2]
[380178899,1755594649201,-536.157911,0.0001999,2]
[380178900,1755594649211,-152.573358,0.0001999,2]
[380178901,1755594649221,-536.157911,0.0001999,2]
[380178902,1755594649229,-151.0,0.0001999,2]
[380178903,1755594649240,-151.0,0.0001999,2]
[380178904,1755594649250,-165.078674,0.0001999,2]
[380178905,1755594649260,-151.0,0.0001999,2]
[380178906,1755594649269,-480.0,0.0002,2]
[380178907,1755594649281,-480.0,0.0002,2]
[380178908,1755594649291,-480.0,0.0002,2]
[380178909,1755594649301,-480.0,0.0002,2]
[380178910,1755594649310,-480.0,0.0002,2]
[380178911,1755594649318,-480.0,0.0002,2]
[380178912,1755594649327,-480.0,0.0002,2]
[380178913,1755594649337,-857.43,0.0002,2]
[380178914,1755594649346,-536.73951683,0.0002,2]
[380178915,1755594649356,-480.0,0.0002,2]
[380178916,1755594649365,-480.0,0.0002,2]
[380178917,1755594649374,-504.67,0.0002,2]
[380178918,1755594649386,-571.08,0.0002,2]
[380178919,1755594649395,-480.0,0.0002,2]
[380178920,1755594649403,-480.0,0.0002,2]
[380178921,1755594649411,-480.0,0.0002,2]
[380178922,1755594649418,-480.0,0.0002,2]
[380178923,1755594649427,-279.80804356,0.0002,2]
[380178924,1755594649434,-480.0,0.0002,2]
[380178925,1755594649442,-440.0,0.0002,2]
[380178926,1755594649450,-480.0,0.0002,2]
[380178927,1755594649459,-337.38032496,0.0002,2]
[380178928,1755594649469,-480.0,0.0002,2]
[380178929,1755594649478,-433.88872808,0.0002,2]
[380178930,1755594649488,-151.0,0.0002,2]
[380178931,1755594649498,-151.0,0.0002,2]
[380178932,1755594649507,-480.0,0.0002,2]
[380178933,1755594649516,-480.0,0.0002,2]
[380178934,1755594649525,-151.0,0.0002,2]
[380178935,1755594649535,-480.0,0.0002,2]
[380178936,1755594649544,-480.0,0.0002,2]
[380178937,1755594649554,-801.13,0.0002,2]
[380178938,1755594649565,-480.0,0.0002,2]
[380178939,1755594649575,-151.0,0.0002,2]
[380178940,1755594649584,-856.43,0.0002,2]
[380178941,1755594649593,-480.0,0.0002,2]
[380178942,1755594649603,-214.046057,0.0002,4]
[380178943,1755594649612,-596.30179579,0.0002,2]
[380178944,1755594649622,-494.05592968,0.0002,2]
[380178945,1755594649631,-529.97,0.0002,2]
[380178946,1755594649642,-480.0,0.0002,2]
[380178947,1755594649651,-480.0,0.0002,2]
[380178948,1755594649660,-480.0,0.0002,2]
[380178949,1755594649669,-382.82287181,0.0002,2]
[380178950,1755594649679,-480.0,0.0002,2]
[380178951,1755594649688,-480.0,0.0002,2]
[380178952,1755594649697,-480.0,0.0002,2]
[380178953,1755594649707,-656.89,0.0002,2]
[380178954,1755594649716,-460.0,0.0002,2]
[380178955,1755594649725,-480.0,0.0002,2]
[380178956,1755594649734,-480.0,0.0002,2]
[380178957,1755594649744,-1162.25,0.0002,2]
[380178958,1755594649753,-480.0,0.0002,2]
[380178959,1755594649762,-501.03,0.0002,2]
[380178960,1755594649771,-666.47,0.0002,2]
[380178961,1755594649780,-480.0,0.0002,2]
[380178962,1755594649789,-640.0,0.0002,5]
[380178963,1755594649866,-480.0,0.0002,2]
[380178964,1755594649876,-480.0,0.0002,2]
[380178965,1755594649887,-220.87746533,0.0002,2]
[380178966,1755594649896,-480.0,0.0002,2]
[380178967,1755594649906,-205.97658574,0.0002,2]
[380178968,1755594649915,-480.0,0.0002,2]
[380178969,1755594649924,-480.0,0.0002,2]
[380178970,1755594649933,-1466.75,0.0002,2]
[380178971,1755594649943,-2257.44,0.0002,2]
[380178972,1755594649952,-480.0,0.0002,2]
[380178973,1755594649962,-480.0,0.0002,2]
[380178974,1755594649971,-480.0,0.0002,2]
[380178975,1755594649980,-480.0,0.0002,2]
[380178976,1755594649989,-827.65,0.0002,2]
[380178977,1755594649998,-760.7,0.0002,2]
[380178978,1755594650011,-480.0,0.0002,2]
[380178979,1755594650022,-480.0,0.0002,2]
[380178980,1755594650031,-450.91281958,0.0002,2]
[380178981,1755594650041,-616.58,0.0002,2]
[380178982,1755594650050,-318.4424479,0.0002,2]
[380178983,1755594650059,-480.0,0.0002,2]
[380178984,1755594650068,-480.0,0.0002,2]
[380178985,1755594650080,-1433.47,0.0002,2]
[380178986,1755594650091,-779.58,0.0002,2]
[380178987,1755594650100,-6706.66,0.0002,2]
[380178988,1755594650109,-417.51,0.0002,2]
[380178989,1755594650119,-480.0,0.0002,2]
[380178990,1755594650128,-670.05,0.0002,2]
[380178991,1755594650137,-1141.66,0.0002,2]
[380178992,1755594650146,-285.65892373,0.0002,2]
[380178993,1755594650155,-1096.61,0.0002,2]
[380178994,1755594650165,-549.83,0.0002,2]
[380178995,1755594650176,-1040.36,0.0002,2]
[380178996,1755594650185,-480.0,0.0002,2]
[380178997,1755594650194,-480.0,0.0002,2]
[380178998,1755594650203,-480.0,0.0002,2]
[380178999,1755594650212,-480.0,0.0002,2]
[380179000,1755594650221,-663.94,0.0002,2]
[380179001,1755594650230,-160.0,0.0002,3]
[380179002,1755594650240,-584.12,0.0002,2]
[380179003,1755594650249,-708.45,0.0002,2]
[380179004,1755594650258,-480.0,0.0002,2]
[380179005,1755594650267,-1243.2,0.0002,2]
[380179006,1755594650279,-480.0,0.0002,2]
[380179007,1755594650288,-480.0,0.0002,2]
[380179008,1755594650296,-2041.53,0.0002,2]
[380179009,1755594650305,-440.0,0.0002,2]
[380179010,1755594650314,-731.69,0.0002,2]
[380179011,1755594650323,-400.0,0.0002,2]
[380179012,1755594650333,-480.0,0.0002,2]
[380179013,1755594650342,-243.29605915,0.0002,2]
[380179014,1755594650352,-6741.79,0.0002,2]
[380179015,1755594650361,-480.0,0.0002,2]
[380179016,1755594650371,-482.49,0.0002,2]
[380179017,1755594650380,-2143.73,0.0002,2]
[380179018,1755594650390,-480.0,0.0002,2]
[380179019,1755594650399,-480.0,0.0002,2]
[380179020,1755594650408,-1416.0,0.0002,2]
[380179021,1755594650418,-3337.57,0.0002,2]
[380179022,1755594650426,-1968.48,0.0002,2]
[380179023,1755594650435,-480.0,0.0002,2]
[380179024,1755594650452,-480.0,0.0002,2]
[380179025,1755594650467,-480.0,0.0002,2]
[380179026,1755594650483,-920.72,0.0002,2]
[380179027,1755594650499,-460.0,0.0002,2]
[380179028,1755594650513,-480.0,0.0002,2]
[380179029,1755594650529,-480.0,0.0002,2]
[380179030,1755594650544,-480.0,0.0002,2]
[380179031,1755594650559,-1594.19,0.0002,2]
[380179032,1755594650573,-480.0,0.0002,2]
[380179033,1755594650585,-480.0,0.0002,2]
[380179034,1755594650599,-811.17,0.0002,2]
[380179035,1755594650614,-261.28086389,0.0002,2]
[380179036,1755594650629,-191.57406264,0.0002,2]
[380179037,1755594650644,-850.65,0.0002,2]
[380179038,1755594650656,-480.0,0.0002,2]
[380179039,1755594650673,-740.39,0.0002,2]
[380179040,1755594650685,-480.0,0.0002,2]
[380179041,1755594650699,-531.76,0.0002,2]
[380179042,1755594650712,-480.0,0.0002,2]
[380179043,1755594650724,-480.0,0.0002,2]
[380179044,1755594650738,-480.0,0.0002,2]
[380179045,1755594650750,-694.13,0.0002,2]
[380179046,1755594650764,-480.0,0.0002,2]
[380179047,1755594650778,-736.57,0.0002,2]
[380179048,1755594650790,-509.2,0.0002,2]
[380179049,1755594650803,-445.31885404,0.0002,2]
[380179050,1755594650816,-480.0,0.0002,2]
[380179051,1755594650829,-837.87,0.0002,2]
[380179052,1755594650842,-480.0,0.0002,2]
[380179053,1755594650855,-3597.33,0.0002,2]
[380179054,1755594650867,-480.0,0.0002,2]
[380179055,1755594650880,-2299.42,0.0002,2]
[380179056,1755594650894,-582.9200745,0.0002,2]
[380179057,1755594650907,-480.0,0.0002,2]
[380179058,1755594650920,-480.0,0.0002,2]
[380179059,1755594650932,-480.0,0.0002,2]
[380179060,1755594650946,-190.993123,0.0002,2]
[380179061,1755594650959,-480.0,0.0002,2]
[380179062,1755594650973,-218.893992,0.0002,2]
[380179063,1755594650986,-190.993123,0.0002,2]
[380179064,1755594650999,-644.65,0.0002,2]
[380179065,1755594651015,-875.34,0.0002,2]
[380179066,1755594651028,-2799.63,0.0002,2]
[380179067,1755594651042,-1306.54,0.0002,2]
[380179068,1755594651055,-425.52378039,0.00020021,2]
[380179069,1755594651068,-504.24025041,0.00020021,2]
[380179070,1755594651081,-1000.0,0.00020021,2]
[380179071,1755594651094,-1000.0,0.00020021,2]
[380179072,1755594651107,-1000.0,0.00020021,2]
[380179073,1755594651120,-171.32111103,0.00020024,4]
[380179074,1755594651133,-168.0,0.00020063,2]
[380179075,1755594651146,-613.0,0.00020071,2]
[380179076,1755594651159,-269.39081631,0.00020076,2]
[380179077,1755594651172,-613.0,0.00020105,2]
[380179078,1755594651187,-972.0,0.00020121,2]
[380179079,1755594651200,-2204.832,0.00020124,2]
[380179080,1755594651209,-637.0,0.00020124,2]
[380179081,1755594651219,-408.0,0.00020134,2]
[380179082,1755594651228,-150.0,0.00020189,2]
[380179083,1755594651352,-1613.04631675,0.00020196,2]
[380179084,1755594651370,-249.6,0.00020203,2]
[380179085,1755594651379,-1760.15148523,0.00020207,2]
[380179086,1755594651390,-223.65181965,0.00020219,2]
[380179087,1755594651399,-167.73886474,0.00020219,2]
[380179088,1755594651408,-250.193768,0.00020241,2]
[380179089,1755594651417,-168.0,0.0002025,2]
[380179090,1755594651426,-155.0,0.0002027,2]
[380179091,1755594651435,-155.0,0.0002027,2]
[380179092,1755594651444,-1762.0,0.0002027,2]
[380179093,1755594651453,-1752.0,0.0002027,2]
[380179094,1755594651462,-203.25529554,0.0002027,2]
[380179095,1755594651470,-326.0,0.0002027,2]
[380179096,1755594651479,-326.0,0.0002027,2]
[380179097,1755594651488,-326.0,0.0002027,2]
[380179098,1755594651497,-326.0,0.0002027,2]
[380179099,1755594651505,-326.0,0.0002027,2]
[380179100,1755594651515,-326.0,0.0002027,2]
[380179101,1755594651524,-326.0,0.0002027,2]
[380179102,1755594651532,-326.0,0.0002027,2]
[380179103,1755594651541,-326.0,0.0002027,2]
[380179104,1755594651550,-326.0,0.0002027,2]
[380179105,1755594651559,-326.0,0.0002027,2]
[380179106,1755594651569,-329.86479115,0.0002027,2]
[380179107,1755594651578,-161.0,0.0002027,2]
[380179108,1755594651587,-161.0,0.0002027,2]
[380179109,1755594651596,-161.0,0.0002027,2]
[380179110,1755594651605,-168.28544289,0.0002027,2]
[380179111,1755594651614,-1762.0,0.0002027,2]
[380179112,1755594651623,-1762.0,0.0002027,2]
[380179113,1755594651632,-1762.0,0.0002027,2]
[380179114,1755594651642,-1762.0,0.0002027,2]
[380179115,1755594651651,-1633.77047188,0.0002027,2]
[380179116,1755594651660,-501.62691226,0.00020273,2]
[380179117,1755594651669,-501.36665159,0.00020273,2]
[380179118,1755594651679,-480.0,0.00020273,2]
[380179119,1755594651688,-480.0,0.00020273,2]
[380179120,1755594651698,-480.0,0.00020273,2]
[380179121,1755594651708,-480.0,0.00020273,2]
[380179122,1755594651717,-480.0,0.00020273,2]
[380179123,1755594651726,-336.19140638,0.00020273,2]
[380179124,1755594651735,-857.43,0.00020273,2]
[380179125,1755594651744,-480.0,0.00020273,2]
[380179126,1755594651753,-151.0,0.00020273,2]
[380179127,1755594651763,-571.08,0.00020273,2]
[380179128,1755594651772,-151.0,0.00020273,2]
[380179129,1755594651781,-480.0,0.00020273,2]
[380179130,1755594651790,-151.0,0.00020273,2]
[380179131,1755594651799,-480.0,0.00020273,2]
[380179132,1755594651809,-480.0,0.00020273,2]
[380179133,1755594651818,-480.0,0.00020273,2]
[380179134,1755594651827,-480.0,0.00020273,2]
[380179135,1755594651837,-151.0,0.00020273,2]
[380179136,1755594651846,-480.0,0.00020273,2]
[380179137,1755594651855,-480.0,0.00020273,2]
[380179138,1755594651864,-480.0,0.00020273,2]
[380179139,1755594651873,-480.0,0.00020273,2]
[380179140,1755594651882,-480.0,0.00020273,2]
[380179141,1755594651892,-426.75500141,0.00020273,2]
[380179142,1755594651902,-801.13,0.00020273,2]
[380179143,1755594651912,-480.0,0.00020273,2]
[380179144,1755594651921,-255.847081,0.00020273,2]
[380179145,1755594651930,-856.43,0.00020273,2]
[380179146,1755594651940,-151.0,0.00020273,2]
[380179147,1755594651949,-151.0,0.00020273,2]
[380179148,1755594651959,-480.0,0.00020273,2]
[380179149,1755594651969,-529.97,0.00020273,2]
[380179150,1755594651979,-480.0,0.00020273,2]
[380179151,1755594651988,-480.0,0.00020273,2]
[380179152,1755594651998,-480.0,0.00020273,2]
[380179153,1755594652012,-340.0,0.00020273,2]
[380179154,1755594652021,-480.0,0.00020273,2]
[380179155,1755594652030,-480.0,0.00020273,2]
[380179156,1755594652039,-151.0,0.00020273,2]
[380179157,1755594652050,-151.0,0.00020273,2]
[380179158,1755594652059,-265.456392,0.00020273,2]
[380179159,1755594652068,-265.456392,0.00020273,2]
[380179160,1755594652078,-656.89,0.00020273,2]
[380179161,1755594652088,-480.0,0.00020273,2]
[380179162,1755594652099,-1162.25,0.00020273,2]
[380179163,1755594652108,-480.0,0.00020273,2]
[380179164,1755594652118,-151.0,0.00020273,2]
[380179165,1755594652128,-666.47,0.00020273,2]
[380179166,1755594652139,-480.0,0.00020273,2]
[380179167,1755594652152,-258.391223,0.00020273,2]
[380179168,1755594652169,-480.0,0.00020273,2]
[380179169,1755594652186,-283.24388,0.00020273,2]
[380179170,1755594652198,-151.0,0.00020273,2]
[380179171,1755594652210,-151.0,0.00020273,2]
[380179172,1755594652220,-258.391223,0.00020273,2]
[380179173,1755594652229,-151.0,0.00020273,2]
[380179174,1755594652238,-151.0,0.00020273,2]
[380179175,1755594652247,-163.212059,0.00020273,2]
[380179176,1755594652256,-163.212059,0.00020273,2]
[380179177,1755594652266,-480.0,0.00020273,2]
[380179178,1755594652275,-480.0,0.00020273,2]
[380179179,1755594652285,-480.0,0.00020273,2]